bitfinex/quotes_BTCUSD_20241211
["timestamp","ask_amount","ask_price","bid_price","bid_amount"]
[1733925406150,0.202494,98769.0,98762.0,0.01653672]
[1733925406349,0.26998767,98780.0,98763.0,0.01107147]
[1733925406350,0.11865061,98772.0,98763.0,0.01107147]
[1733925406553,0.11865061,98772.0,98758.0,0.00101245]
[1733925406554,0.202502,98765.0,98764.0,0.01107147]
[1733925407146,0.26898767,98780.0,98764.0,0.01107147]
[1733925407147,0.202497,98767.0,98764.0,0.01107147]
[1733925407362,0.202497,98767.0,98765.0,0.01107147]
[1733925407738,0.202497,98767.0,98766.0,0.01107147]
[1733925409526,0.001,98767.0,98766.0,0.01107147]
[1733925409672,0.202495,98768.0,98766.0,0.01107147]
[1733925410045,0.202495,98768.0,98764.0,0.002]
[1733925410046,0.202495,98768.0,98767.0,0.01107147]
[1733925410462,0.26898767,98780.0,98767.0,0.01107147]
[1733925410463,0.00033706,98780.0,98767.0,0.01107147]
[1733925410679,0.00033706,98780.0,98768.0,0.01107147]
[1733925410680,0.202484,98774.0,98768.0,0.01107147]
[1733925410919,0.202484,98774.0,98769.0,0.01107147]
[1733925411097,0.202484,98774.0,98770.0,0.01107147]
[1733925411336,0.404966,98774.0,98771.0,0.01107147]
[1733925411537,0.404966,98774.0,98772.0,0.01107147]
[1733925411538,0.202482,98774.0,98772.0,0.01107147]
[1733925411745,0.202482,98774.0,98773.0,0.01107147]
[1733925412173,0.202496,98767.0,98766.0,0.002]
[1733925412386,0.202496,98767.0,98766.0,0.01111477]
[1733925414767,0.001,98774.0,98766.0,0.01211477]
[1733925414966,0.202488,98771.0,98767.0,0.01111477]
[1733925415191,0.202488,98771.0,98766.0,0.001]
[1733925415192,0.202484,98773.0,98768.0,0.01111477]
[1733925415515,0.202484,98773.0,98769.0,0.01111477]
[1733925415718,0.202484,98773.0,98770.0,0.0111168]
[1733925415945,0.001,98774.0,98770.0,0.0111168]
[1733925416151,0.001,98774.0,98771.0,0.0111168]
[1733925416351,0.00033706,98780.0,98772.0,0.0111168]
[1733925416481,0.00033706,98780.0,98773.0,0.0111168]
[1733925416704,0.00033706,98780.0,98774.0,0.01655057]
[1733925416901,0.00033706,98780.0,98775.0,0.0111147]
[1733925417127,0.00033706,98780.0,98776.0,0.01755538]
[1733925417407,0.00033706,98780.0,98777.0,0.0111147]
[1733925417530,0.00033706,98780.0,98778.0,0.01212695]
[1733925417726,0.00033706,98780.0,98779.0,0.01653491]
[1733925417977,0.00033706,98780.0,98779.0,0.01754716]
[1733925419372,0.00033706,98780.0,98779.0,0.02253491]
[1733925419599,0.00033706,98780.0,98779.0,0.01953491]
[1733925420073,0.00033706,98780.0,98779.0,0.0191147]
[1733925420698,0.00033706,98780.0,98779.0,0.01653378]
[1733925421101,0.00033706,98780.0,98779.0,0.0151147]
[1733925421303,0.20280706,98780.0,98779.0,0.0151147]
[1733925421502,0.20280706,98780.0,98779.0,0.0111147]
[1733925422708,0.20380706,98780.0,98779.0,0.0111147]
[1733925422936,0.20280706,98780.0,98779.0,0.0121147]
[1733925423351,0.20280706,98780.0,98779.0,0.0131147]
[1733925424223,0.20280706,98780.0,98779.0,0.002]
[1733925424473,0.20280706,98780.0,98779.0,0.01311171]
[1733925424697,0.00033706,98780.0,98779.0,0.01311171]
[1733925426982,0.00033706,98780.0,98779.0,0.01853086]
[1733925427218,0.00033706,98780.0,98779.0,0.01311171]
[1733925427411,0.20280706,98780.0,98779.0,0.01311171]
[1733925427977,0.00033706,98780.0,98779.0,0.01311171]
[1733925428692,0.00033706,98780.0,98779.0,0.01853082]
[1733925429305,0.00033706,98780.0,98779.0,0.25196832]
[1733925429504,0.00033706,98780.0,98779.0,0.26872925]
[1733925429756,0.00033706,98780.0,98779.0,0.35878403]
[1733925429932,0.00033706,98780.0,98779.0,0.26772925]
[1733925430311,0.00033706,98780.0,98779.0,0.26872925]
[1733925431151,0.00033706,98780.0,98779.0,0.15226401]
[1733925431555,0.00033706,98780.0,98779.0,0.13349082]
[1733925431941,0.00033706,98780.0,98779.0,0.14449082]
[1733925432191,0.00033706,98780.0,98779.0,0.06569082]
[1733925432346,0.00033706,98780.0,98779.0,0.05369082]
[1733925432566,0.00033706,98780.0,98779.0,0.05669082]
[1733925433298,0.00033706,98780.0,98779.0,0.05369082]
[1733925433462,0.00033706,98780.0,98779.0,0.05470303]
[1733925433656,0.00033706,98780.0,98779.0,0.05369082]
[1733925434198,0.00033706,98780.0,98779.0,0.0536856]
[1733925435213,0.00033706,98780.0,98779.0,0.0546856]
[1733925435413,0.00033706,98780.0,98779.0,0.0566856]
[1733925435796,0.00033706,98780.0,98779.0,0.0556856]
[1733925435986,0.00033706,98780.0,98779.0,0.0606856]
[1733925436186,0.00033706,98780.0,98779.0,0.0646856]
[1733925438143,0.00033706,98780.0,98779.0,0.0536856]
[1733925438297,0.00033706,98780.0,98779.0,0.0546856]
[1733925438551,0.00033706,98780.0,98779.0,0.05226649]
[1733925438705,0.00033706,98780.0,98779.0,0.05468547]
[1733925438908,0.00033706,98780.0,98779.0,0.05368547]
[1733925439541,0.00033706,98780.0,98779.0,0.07145709]
[1733925439969,0.00033706,98780.0,98779.0,0.07245709]
[1733925440856,0.05297345,98789.0,98779.0,0.07245709]
[1733925441032,0.0001712,98790.0,98780.0,0.02887811]
[1733925441194,0.202459,98786.0,98781.0,0.02887811]
[1733925441395,0.0001712,98790.0,98782.0,0.02887811]
[1733925441621,0.202459,98786.0,98783.0,0.02887811]
[1733925441882,0.202453,98788.0,98784.0,0.02887811]
[1733925442093,0.0001712,98790.0,98779.0,0.03832546]
[1733925442094,0.0001712,98790.0,98785.0,0.02887811]
[1733925442327,0.0001712,98790.0,98786.0,0.01110649]
[1733925442502,0.0001712,98790.0,98779.0,0.24079546]
[1733925442503,0.0001712,98790.0,98787.0,0.02887811]
[1733925442704,0.0001712,98790.0,98788.0,0.02989026]
[1733925443003,0.0001712,98790.0,98789.0,0.02887811]
[1733925443226,0.0001712,98790.0,98789.0,0.02989026]
[1733925443428,0.0001712,98790.0,98789.0,0.03528213]
[1733925444208,0.0001712,98790.0,98789.0,0.00539187]
[1733925444387,0.0001712,98790.0,98789.0,0.01111783]
[1733925444581,0.0001712,98790.0,98789.0,0.02890728]
[1733925444785,0.0001712,98790.0,98789.0,0.03429915]
[1733925445217,0.0001712,98790.0,98789.0,0.02890728]
[1733925445594,0.0001712,98790.0,98789.0,0.03429915]
[1733925445809,0.0001712,98790.0,98789.0,0.03090728]
[1733925446003,0.0001712,98790.0,98789.0,0.03190728]
[1733925446268,0.0001712,98790.0,98789.0,0.02890728]
[1733925446911,0.0001712,98790.0,98789.0,0.03090728]
[1733925447329,0.0001712,98790.0,98789.0,0.02892793]
[1733925447539,0.0001712,98790.0,98789.0,0.03092793]
[1733925447745,0.0001712,98790.0,98789.0,0.03292793]
[1733925447957,0.0001712,98790.0,98789.0,0.03092793]
[1733925448379,0.0001712,98790.0,98789.0,0.03292793]
[1733925449050,0.0001712,98790.0,98789.0,0.02892793]
[1733925449262,0.0001712,98790.0,98789.0,0.02992793]
[1733925449469,0.0001712,98790.0,98789.0,0.03092793]
[1733925449922,0.0001712,98790.0,98789.0,0.02992793]
[1733925450131,0.0001712,98790.0,98789.0,0.03192793]
[1733925450763,0.0001712,98790.0,98789.0,0.02892793]
[1733925452126,0.0001712,98790.0,98789.0,0.0178036]
[1733925452328,0.0001712,98790.0,98789.0,0.02893027]
[1733925452534,0.0001712,98790.0,98789.0,0.10673027]
[1733925452733,0.0001712,98790.0,98789.0,0.30918127]
[1733925452937,0.0001712,98790.0,98789.0,0.11350897]
[1733925453458,0.0001712,98790.0,98789.0,0.11452112]
[1733925453903,0.0001712,98790.0,98789.0,0.13633726]
[1733925454060,0.0001712,98790.0,98789.0,0.49450135]
[1733925454267,0.0001712,98790.0,98789.0,0.49448826]
[1733925454647,0.0001712,98790.0,98789.0,0.49548826]
[1733925454832,0.0001712,98790.0,98789.0,0.50879572]
[1733925455387,0.0001712,98790.0,98789.0,0.50379572]
[1733925455618,0.0001712,98790.0,98789.0,0.50779572]
[1733925456021,0.0001712,98790.0,98789.0,0.50479572]
[1733925456484,0.0001712,98790.0,98789.0,0.50779572]
[1733925456892,0.0001712,98790.0,98789.0,0.50079572]
[1733925457093,0.0001712,98790.0,98789.0,0.50579572]
[1733925457301,0.0001712,98790.0,98789.0,0.51077432]
[1733925457697,0.0001712,98790.0,98789.0,0.51377432]
[1733925458016,0.0001712,98790.0,98789.0,0.50577432]
[1733925458436,0.0001712,98790.0,98789.0,0.51377432]
[1733925459059,0.0001712,98790.0,98789.0,0.55093432]
[1733925459266,0.0001712,98790.0,98789.0,0.55092933]
[1733925460074,0.0001712,98790.0,98789.0,0.34847833]
[1733925460277,0.0001712,98790.0,98789.0,0.23284563]
[1733925460504,0.0001712,98790.0,98789.0,0.18344434]
[1733925461155,0.0001712,98790.0,98789.0,0.10564434]
[1733925463151,0.0001712,98790.0,98789.0,0.10665647]
[1733925463425,0.0001712,98790.0,98789.0,0.09365647]
[1733925463632,0.0001712,98790.0,98789.0,0.09665647]
[1733925463852,0.0001712,98790.0,98789.0,0.09966123]
[1733925464059,0.0001712,98790.0,98789.0,0.09666123]
[1733925464477,0.0001712,98790.0,98789.0,0.0926491]
[1733925464682,0.0001712,98790.0,98789.0,0.0956491]
[1733925464886,0.0001712,98790.0,98789.0,0.0966491]
[1733925465113,0.0001712,98790.0,98789.0,0.0926491]
[1733925465533,0.0001712,98790.0,98789.0,0.0946491]
[1733925466563,0.0001712,98790.0,98789.0,0.07783296]
[1733925466771,0.0001712,98790.0,98789.0,0.07283296]
[1733925466981,0.0001712,98790.0,98789.0,0.06605426]
[1733925467189,0.1501712,98790.0,98789.0,0.05327741]
[1733925467596,0.1501712,98790.0,98789.0,0.05027741]
[1733925467815,0.1511712,98790.0,98789.0,0.04827652]
[1733925468225,0.25649644,98790.0,98789.0,0.04827652]
[1733925468426,0.25749644,98790.0,98789.0,0.04827652]
[1733925469535,0.25749644,98790.0,98789.0,0.03716]
[1733925469761,0.25549644,98790.0,98789.0,0.03716]
[1733925469970,0.25649644,98790.0,98789.0,0.03716]
[1733925470404,0.25549644,98790.0,98789.0,0.03716]
[1733925470615,0.25649644,98790.0,98789.0,0.03716]
[1733925473403,0.25549644,98790.0,98789.0,0.03716]
[1733925473647,0.25649644,98790.0,98789.0,0.03716]
[1733925481054,0.25649644,98790.0,98780.0,8.58e-05]
[1733925481055,0.352468,98781.0,98780.0,8.58e-05]
[1733925481275,0.45779324,98781.0,98780.0,8.58e-05]
[1733925482974,0.352468,98781.0,98780.0,8.58e-05]
[1733925483179,0.005,98781.0,98780.0,0.0010858]
[1733925483369,0.005,98781.0,98780.0,0.01117628]
[1733925483506,0.005,98781.0,98780.0,0.01572009]
[1733925483711,0.01,98781.0,98780.0,0.01899199]
[1733925483916,0.15,98787.0,98780.0,0.01572]
[1733925483917,0.202457,98786.0,98780.0,0.01572]
[1733925484124,0.202459,98785.0,98781.0,0.01109048]
[1733925484338,0.202459,98785.0,98782.0,0.01109048]
[1733925484533,0.202459,98785.0,98783.0,0.01109048]
[1733925484930,0.202459,98785.0,98784.0,0.01109048]
[1733925486690,0.204459,98785.0,98784.0,0.01109048]
[1733925488438,0.002,98785.0,98784.0,0.01109048]
[1733925488644,0.002,98785.0,98784.0,0.10575201]
[1733925488883,0.002,98785.0,98784.0,0.11255114]
[1733925489305,0.0001712,98790.0,98784.0,0.11255886]
[1733925489444,0.0001712,98790.0,98785.0,0.01776019]
[1733925489637,0.0001712,98790.0,98784.0,0.09479867]
[1733925489638,0.0001712,98790.0,98786.0,0.02885973]
[1733925489837,0.0001712,98790.0,98787.0,0.02885973]
[1733925490043,0.0001712,98790.0,98789.0,0.0473]
[1733925490306,0.0001712,98790.0,98789.0,0.07615973]
[1733925490532,0.0001712,98790.0,98789.0,0.08293849]
[1733925491137,0.0031712,98790.0,98789.0,0.08293849]
[1733925491561,0.0031712,98790.0,98789.0,0.1892759]
[1733925491793,0.0031712,98790.0,98789.0,0.08395066]
[1733925492186,0.0031712,98790.0,98789.0,0.08595066]
[1733925492320,0.0001712,98790.0,98789.0,0.08595066]
[1733925492520,0.0001712,98790.0,98789.0,0.08795066]
[1733925492728,0.0001712,98790.0,98789.0,0.08595066]
[1733925493198,0.0001712,98790.0,98789.0,0.08995066]
[1733925493579,0.0001712,98790.0,98789.0,0.08795066]
[1733925493974,0.0001712,98790.0,98789.0,0.09095066]
[1733925495726,0.0001712,98790.0,98789.0,0.06209093]
[1733925495942,0.0001712,98790.0,98789.0,0.28230271]
[1733925496167,0.0001712,98790.0,98789.0,0.29239045]
[1733925497634,0.0001712,98790.0,98789.0,0.36779045]
[1733925502662,0.0001712,98790.0,98789.0,0.38553344]
[1733925502964,0.0001712,98790.0,98789.0,0.36777266]
[1733925505781,0.0001712,98790.0,98789.0,0.36777316]
[1733925505990,0.0001712,98790.0,98789.0,0.4730984]
[1733925507056,0.004054,98806.0,98798.0,0.404865]
[1733925507262,0.004054,98806.0,98799.0,0.0288434]
[1733925507476,0.004054,98806.0,98800.0,0.0288434]
[1733925507652,0.004054,98806.0,98801.0,0.0288434]
[1733925507928,0.004054,98806.0,98800.0,0.00673312]
[1733925507929,0.004054,98806.0,98802.0,0.0288434]
[1733925508129,0.004054,98806.0,98803.0,0.0288434]
[1733925508344,0.004054,98806.0,98804.0,0.0288434]
[1733925508549,0.202414,98808.0,98805.0,0.0288434]
[1733925508550,0.201468,98808.0,98805.0,0.0288434]
[1733925508754,0.201468,98808.0,98806.0,0.0288434]
[1733925509106,0.201468,98808.0,98796.0,0.20344705]
[1733925509107,0.201468,98808.0,98807.0,0.0288434]
[1733925509520,0.040528,98808.0,98807.0,0.0288434]
[1733925509723,0.040528,98808.0,98807.0,0.1080434]
[1733925509905,0.040528,98808.0,98807.0,0.03554798]
[1733925510726,0.040528,98808.0,98807.0,0.0288434]
[1733925511064,0.040528,98808.0,98807.0,0.0298434]
[1733925512206,0.040528,98808.0,98807.0,0.001]
[1733925512409,0.040528,98808.0,98807.0,0.02985031]
[1733925518900,0.040528,98808.0,98807.0,0.03655498]
[1733925519316,0.040528,98808.0,98807.0,0.02985031]
[1733925519536,0.14585324,98808.0,98807.0,0.02885031]
[1733925519736,0.37595324,98808.0,98807.0,0.02885031]
[1733925519964,0.4432026,98808.0,98807.0,9.1e-07]
[1733925520175,0.352468,98781.0,98767.0,0.0785]
[1733925520430,0.352468,98781.0,98770.0,0.02042813]
[1733925520644,0.352468,98781.0,98750.0,0.2026157]
[1733925520645,0.45779324,98781.0,98750.0,0.2026157]
[1733925520852,0.45779324,98781.0,98759.0,0.0801]
[1733925521319,0.45779324,98781.0,98760.0,0.01778544]
[1733925521564,0.45779324,98781.0,98759.0,0.0801]
[1733925521565,0.45779324,98781.0,98761.0,0.01778544]
[1733925521773,0.45779324,98781.0,98762.0,0.01778544]
[1733925522012,0.45779324,98781.0,98759.0,0.0801]
[1733925522225,0.45779324,98781.0,98763.0,0.01778332]
[1733925522428,0.45779324,98781.0,98760.0,0.01778332]
[1733925522634,0.45979324,98781.0,98764.0,0.01777408]
[1733925522833,0.46079324,98781.0,98762.0,0.0206238]
[1733925523062,0.46079324,98781.0,98763.0,0.01777413]
[1733925523272,0.45979324,98781.0,98764.0,0.01777413]
[1733925523478,0.45779324,98781.0,98765.0,0.01777413]
[1733925523689,0.45779324,98781.0,98762.0,0.0206238]
[1733925523899,0.45779324,98781.0,98763.0,0.01776429]
[1733925524105,0.45779324,98781.0,98764.0,0.01776429]
[1733925524322,0.45779324,98781.0,98762.0,0.0206238]
[1733925524563,0.45979324,98781.0,98763.0,0.01775629]
[1733925524769,0.45979324,98781.0,98764.0,0.01775629]
[1733925524977,0.45979324,98781.0,98762.0,0.0206238]
[1733925525188,0.45979324,98781.0,98763.0,0.01775745]
[1733925525400,0.47624329,98781.0,98780.0,0.0010858]
[1733925525614,0.47624329,98781.0,98780.0,8.58e-05]
[1733925525615,0.48460525,98781.0,98780.0,8.58e-05]
[1733925525841,0.48460525,98781.0,98780.0,0.0010858]
[1733925526316,0.56270525,98781.0,98780.0,0.0010858]
[1733925526523,0.56270525,98781.0,98780.0,8e-07]
[1733925526524,0.73570455,98781.0,98780.0,8e-07]
[1733925526729,0.3229993,98780.0,98752.0,0.01774493]
[1733925526944,0.42832454,98780.0,98750.0,8.57e-05]
[1733925527154,0.42832454,98780.0,98751.0,0.01774539]
[1733925527360,0.42832454,98780.0,98750.0,8.57e-05]
[1733925528638,0.43732454,98780.0,98779.0,0.00116546]
[1733925529363,0.42832454,98780.0,98779.0,0.00016546]
[1733925529587,0.43732454,98780.0,98779.0,0.00116546]
[1733925529795,0.43732454,98780.0,98779.0,0.00016546]
[1733925530241,0.43832454,98780.0,98779.0,0.00016546]
[1733925530712,0.54242783,98780.0,98779.0,0.00016546]
[1733925530994,0.54342783,98780.0,98779.0,0.00016546]
[1733925531246,0.44732454,98780.0,98779.0,4.6e-07]
[1733925531502,0.1499993,98777.0,98750.0,8.57e-05]
[1733925531784,0.202529,98751.0,98750.0,8.57e-05]
[1733925532414,0.202516,98758.0,98750.0,8.57e-05]
[1733925532618,0.202508,98762.0,98750.0,8.57e-05]
[1733925532619,0.15,98775.0,98753.0,0.0473]
[1733925532822,0.15,98775.0,98754.0,0.00461463]
[1733925533029,0.15,98775.0,98756.0,0.202519]
[1733925533253,0.15,98775.0,98755.0,0.0756]
[1733925533254,0.202496,98768.0,98757.0,0.00460649]
[1733925533456,0.202503,98764.0,98757.0,0.00460649]
[1733925533663,0.202503,98764.0,98755.0,0.0756]
[1733925533864,0.202503,98764.0,98758.0,0.00460378]
[1733925534065,0.405006,98764.0,98755.0,0.0756]
[1733925534289,0.202503,98764.0,98759.0,0.00460107]
[1733925534514,0.001,98758.0,98755.0,0.0756]
[1733925534855,0.202503,98764.0,98755.0,0.0756]
[1733925535008,0.202503,98764.0,98756.0,0.01565188]
[1733925535209,0.206503,98764.0,98757.0,0.01104268]
[1733925535371,0.206503,98764.0,98758.0,0.01104268]
[1733925535571,0.206503,98764.0,98759.0,0.01104268]
[1733925535772,0.206503,98764.0,98760.0,0.01104268]
[1733925535971,0.202503,98764.0,98761.0,0.01104268]
[1733925536176,0.203503,98764.0,98762.0,0.01104268]
[1733925536377,0.203503,98764.0,98763.0,0.01104268]
[1733925536378,0.001,98764.0,98763.0,0.01104268]
[1733925536580,0.202502,98765.0,98763.0,0.01104268]
[1733925536782,0.202502,98765.0,98764.0,0.01104268]
[1733925537277,0.000106,98780.0,98774.0,0.20248]
[1733925537478,0.000106,98780.0,98774.0,0.0010123]
[1733925537630,0.000106,98780.0,98775.0,0.09269395]
[1733925538053,0.000106,98780.0,98776.0,0.01103644]
[1733925538337,0.202472,98779.0,98777.0,0.01103644]
[1733925538539,0.000106,98780.0,98778.0,0.01103644]
[1733925538789,0.000106,98780.0,98779.0,0.01103644]
[1733925539292,0.000106,98780.0,98779.0,0.01785637]
[1733925539444,0.006106,98780.0,98779.0,0.01785637]
[1733925539667,0.001106,98780.0,98779.0,0.01785637]
[1733925540155,0.000106,98780.0,98779.0,0.01785637]
[1733925540358,0.000106,98780.0,98779.0,0.01885637]
[1733925540925,0.000106,98780.0,98779.0,0.0188618]
[1733925541604,0.000106,98780.0,98779.0,0.01858849]
[1733925541811,0.000106,98780.0,98779.0,0.01404187]
[1733925542919,0.000106,98780.0,98779.0,0.01858826]
[1733925543128,0.000106,98780.0,98779.0,0.02086145]
[1733925543532,0.0001716,98790.0,98779.0,0.02086145]
[1733925543533,0.0001716,98790.0,98788.0,0.15]
[1733925543726,0.0001716,98790.0,98789.0,0.46451718]
[1733925543909,0.0001716,98790.0,98789.0,0.47028414]
[1733925544950,0.0021716,98790.0,98789.0,0.47028414]
[1733925545146,0.0001716,98790.0,98789.0,0.47028414]
[1733925545646,0.0011716,98790.0,98789.0,0.47928414]
[1733925546074,0.0001716,98790.0,98789.0,0.48068487]
[1733925546552,0.0011716,98790.0,98789.0,0.48968487]
[1733925547066,0.0011716,98790.0,98789.0,0.49768487]
[1733925549888,0.0011716,98790.0,98789.0,0.49768487]
[1733925553356,0.0011716,98790.0,98789.0,0.4689559]
[1733925553584,0.0011716,98790.0,98789.0,0.49756091]
[1733925556735,0.0011716,98790.0,98789.0,0.4689559]
[1733925556945,0.0011716,98790.0,98789.0,0.49755661]
[1733925562209,0.0011716,98790.0,98789.0,0.18978037]
[1733925562515,0.0011716,98790.0,98789.0,0.13077964]
[1733925562931,0.0011716,98790.0,98789.0,0.05237964]
[1733925563568,0.0001716,98790.0,98789.0,0.04337964]
[1733925563783,0.0001716,98790.0,98789.0,0.03639177]
[1733925563995,0.0001716,98790.0,98789.0,0.04139177]
[1733925564207,0.0001716,98790.0,98789.0,0.03639177]
[1733925564628,0.0001716,98790.0,98789.0,0.04139177]
[1733925564845,0.0001716,98790.0,98789.0,0.03639177]
[1733925565276,0.0001716,98790.0,98789.0,0.04439177]
[1733925565480,0.0001716,98790.0,98789.0,0.03939177]
[1733925565680,0.0001716,98790.0,98789.0,0.03639177]
[1733925565890,0.0001716,98790.0,98789.0,0.14171701]
[1733925566096,0.0001716,98790.0,98789.0,0.14571701]
[1733925566530,0.0001716,98790.0,98789.0,0.04039177]
[1733925566944,0.0001716,98790.0,98789.0,0.03639177]
[1733925567148,0.0001716,98790.0,98789.0,0.04039177]
[1733925567783,0.0001716,98790.0,98789.0,0.04639177]
[1733925568152,0.0001716,98790.0,98789.0,0.04039177]
[1733925568355,0.0011716,98790.0,98789.0,0.04639177]
[1733925568558,0.0011716,98790.0,98789.0,0.04537964]
[1733925569137,0.0011716,98790.0,98789.0,0.04639179]
[1733925570110,0.0011716,98790.0,98789.0,0.15185263]
[1733925572278,0.0011716,98790.0,98789.0,0.23285263]
[1733925572487,0.0011716,98790.0,98789.0,0.23184048]
[1733925572693,0.0004,98809.0,98789.0,0.23184048]
[1733925572900,0.0004,98809.0,98804.0,0.202419]
[1733925573088,0.0004,98809.0,98808.0,0.0777]
[1733925573469,0.0004,98809.0,98808.0,0.21956584]
[1733925573609,0.0004,98809.0,98808.0,0.20750186]
[1733925573816,0.0004,98809.0,98808.0,0.21858396]
[1733925574021,0.0024,98809.0,98808.0,0.21858396]
[1733925574224,0.0004,98809.0,98808.0,0.21858396]
[1733925575006,0.0004,98809.0,98808.0,0.24267887]
[1733925575348,0.0004,98829.0,98828.0,0.202371]
[1733925575543,0.0004,98829.0,98828.0,0.23113734]
[1733925575741,0.0004,98829.0,98828.0,0.23784845]
[1733925575966,0.0004,98829.0,98828.0,0.36264845]
[1733925576788,0.00051723,98829.0,98828.0,0.34494573]
[1733925577107,0.0001716,98840.0,98835.0,0.202355]
[1733925577317,0.0001716,98840.0,98828.0,0.26836208]
[1733925577318,0.0002116,98850.0,98836.0,0.11740056]
[1733925577562,0.0002116,98850.0,98843.0,0.202341]
[1733925577805,0.0002116,98850.0,98843.0,0.21340462]
[1733925577926,0.0002116,98850.0,98843.0,0.22005441]
[1733925578840,0.0002116,98850.0,98843.0,0.23028259]
[1733925579062,0.0002116,98850.0,98843.0,0.22005441]
[1733925579499,0.0002116,98850.0,98843.0,0.22305441]
[1733925579955,0.0002116,98850.0,98843.0,0.22005441]
[1733925580182,0.0002116,98850.0,98843.0,0.22305441]
[1733925580430,0.0002116,98850.0,98843.0,0.22705441]
[1733925580628,0.0002116,98850.0,98843.0,0.22405441]
[1733925580871,0.0002116,98850.0,98843.0,0.25142741]
[1733925581700,0.0002116,98850.0,98843.0,0.26903228]
[1733925582177,0.0002116,98850.0,98843.0,0.26503228]
[1733925582417,0.0002116,98850.0,98843.0,0.26903228]
[1733925582858,0.0002116,98850.0,98843.0,0.26503228]
[1733925583063,0.0002116,98850.0,98843.0,0.25803228]
[1733925583272,0.0002116,98850.0,98843.0,0.27003228]
[1733925583487,0.0002116,98850.0,98843.0,0.44845752]
[1733925583910,0.0002116,98850.0,98843.0,0.45645752]
[1733925584486,0.0002116,98850.0,98843.0,0.44845752]
[1733925584685,0.0002116,98850.0,98843.0,0.24611652]
[1733925584890,0.202337,98845.0,98843.0,0.14879128]
[1733925585053,0.202729,98849.0,98843.0,0.14879128]
[1733925585459,0.405058,98849.0,98843.0,0.14379128]
[1733925585850,0.202338,98845.0,98843.0,0.14379128]
[1733925586027,0.202338,98845.0,98843.0,0.14879128]
[1733925586465,0.202338,98845.0,98843.0,0.06857542]
[1733925586685,0.202338,98845.0,98843.0,0.06057542]
[1733925586886,0.202338,98845.0,98843.0,0.03635443]
[1733925587087,0.202338,98845.0,98843.0,0.04535443]
[1733925587417,0.202338,98845.0,98843.0,0.03635443]
[1733925587620,0.202338,98845.0,98843.0,0.04435443]
[1733925588056,0.202338,98845.0,98843.0,0.03635443]
[1733925588315,0.202338,98845.0,98843.0,0.04335443]
[1733925588662,0.202338,98845.0,98843.0,0.03835443]
[1733925588869,0.202338,98845.0,98843.0,0.027373]
[1733925589386,0.202338,98845.0,98843.0,0.031373]
[1733925589934,0.202338,98845.0,98843.0,0.020373]
[1733925590137,0.202338,98845.0,98843.0,0.022373]
[1733925590346,0.202338,98845.0,98843.0,0.03335514]
[1733925590757,0.202338,98845.0,98843.0,0.03435514]
[1733925590966,0.202338,98845.0,98843.0,0.03335514]
[1733925591167,0.202338,98845.0,98843.0,0.022373]
[1733925591380,0.202338,98845.0,98843.0,0.025373]
[1733925591647,0.202338,98845.0,98843.0,0.002]
[1733925591841,0.202338,98845.0,98828.0,0.00011723]
[1733925591842,0.0004,98849.0,98838.0,0.02068247]
[1733925592046,0.404682,98843.0,98839.0,0.00101161]
[1733925592260,0.202341,98843.0,98839.0,0.00666604]
[1733925592451,0.202341,98843.0,98840.0,0.01098418]
[1733925592660,0.0004,98849.0,98840.0,0.01098418]
[1733925592661,0.202334,98847.0,98840.0,0.01098418]
[1733925592952,0.202331,98848.0,98843.0,0.002]
[1733925593141,0.202331,98848.0,98840.0,0.01098418]
[1733925593498,0.2170718,98844.0,98840.0,0.01098418]
[1733925593701,0.202341,98843.0,98840.0,0.01198418]
[1733925593906,0.202341,98843.0,98841.0,0.00665791]
[1733925594118,0.202341,98843.0,98840.0,0.01198418]
[1733925594341,0.404682,98843.0,98840.0,0.01198418]
[1733925594744,0.0147328,98844.0,98840.0,0.007]
[1733925594946,0.0147328,98844.0,98841.0,0.0076695]
[1733925596227,0.0147328,98844.0,98841.0,0.0126695]
[1733925596627,0.0147328,98844.0,98841.0,0.01165791]
[1733925597043,0.0147328,98844.0,98841.0,0.005]
[1733925597310,0.0146928,98844.0,98841.0,0.005]
[1733925597517,0.202341,98843.0,98841.0,0.013]
[1733925597720,0.202341,98843.0,98842.0,0.00665385]
[1733925597923,0.202341,98843.0,98841.0,0.01]
[1733925598361,0.202349,98839.0,98838.0,0.02068247]
[1733925600981,0.202369,98829.0,98828.0,0.00011723]
[1733925601873,0.202369,98829.0,98828.0,0.03175994]
[1733925602704,0.202369,98829.0,98828.0,0.03275994]
[1733925603159,0.202369,98829.0,98828.0,0.01213714]
[1733925603405,0.202369,98829.0,98828.0,0.00011723]
[1733925603647,0.22329517,98829.0,98828.0,0.00011723]
[1733925603887,0.202369,98829.0,98828.0,0.00011723]
[1733925604344,0.38799424,98829.0,98828.0,0.00011723]
[1733925604540,0.43269424,98829.0,98828.0,0.00011723]
[1733925605159,0.43569424,98829.0,98828.0,0.00011723]
[1733925606028,0.21535153,98829.0,98828.0,0.00011723]
[1733925606446,0.202369,98829.0,98828.0,0.00011723]
[1733925606670,0.205369,98829.0,98828.0,0.00111723]
[1733925607497,0.202369,98829.0,98828.0,0.00011723]
[1733925607857,0.205369,98829.0,98828.0,0.00011723]
[1733925608053,0.202369,98829.0,98828.0,0.00011723]
[1733925609437,0.16042206,98849.0,98828.0,0.00011723]
[1733925609595,0.16042206,98849.0,98828.0,0.00111723]
[1733925609596,0.202366,98831.0,98828.0,0.00111723]
[1733925609803,0.202366,98831.0,98829.0,0.01100561]
[1733925610007,0.202366,98831.0,98830.0,0.01100432]
[1733925610330,0.404732,98831.0,98828.0,0.00111723]
[1733925611486,0.404732,98831.0,98828.0,0.00011723]
[1733925611912,0.404732,98831.0,98828.0,0.00111723]
[1733925612168,0.202366,98831.0,98828.0,0.00111723]
[1733925612372,0.404732,98831.0,98828.0,0.00111723]
[1733925612576,0.404732,98831.0,98828.0,0.00011723]
[1733925612778,0.404732,98831.0,98828.0,0.00111723]
[1733925612984,0.202366,98831.0,98828.0,0.00211723]
[1733925613192,0.16042206,98849.0,98829.0,0.01101012]
[1733925613193,0.202351,98838.0,98829.0,0.01101012]
[1733925613365,0.202351,98838.0,98830.0,0.07642724]
[1733925613616,0.202335,98846.0,98831.0,0.02862724]
[1733925613816,0.202335,98846.0,98830.0,0.0478]
[1733925613817,0.202354,98837.0,98832.0,0.02862724]
[1733925614020,0.202354,98837.0,98833.0,0.01101012]
[1733925614242,0.202354,98837.0,98833.0,0.02862518]
[1733925614445,0.202354,98837.0,98834.0,0.02862518]
[1733925614621,0.404708,98837.0,98834.0,0.01100933]
[1733925614822,0.404708,98837.0,98835.0,0.01100933]
[1733925614975,0.404708,98837.0,98836.0,0.01100933]
[1733925615387,0.404708,98837.0,98828.0,0.00112898]